{"text_format":"2","workbook":"xlsx","n_sheets":1,"sheets":["тижневий звіт"],"not_rendered":{"charts":0,"images":0,"macros":0,"external_links":0,"defined_names":0,"comments":0,"pivot_tables":0},"unopened":[],"bounds":{"document_bytes":16777216,"sheet_cells":100000,"run_cost":"one","rows_first":2000,"rows_last":500,"rows_between":2000,"halvings":0,"cell_chars":16384,"cell_head_chars":4096},"cells_cut":0,"cells_raw":0,"read":"whole","date_system":"1900"}

{"sheet":"тижневий звіт","index":0,"n_rows":27,"n_cols":20,"rows_kept":27,"cut":false,"hidden":false,"merged":[[9,0,10,0],[11,0,17,0],[18,0,18,1],[19,0,19,1],[20,0,21,0],[22,0,26,0],[27,1,27,3],[0,8,0,10],[2,4,2,10],[2,12,2,18],[4,0,4,1],[5,0,5,1],[6,0,7,0],[8,0,8,1]]}
[{"$nulls":8},"30.06.2023-06.07.2023 "]
[]
[{"$nulls":4},"Кіровоградська область",{"$nulls":6},"Всього","Дніпропетровська область",{"$nulls":6},"Всього"]
[{"$nulls":4},"Вода","Атмосфера","Земля","Відходи","Надра","Біоресурси","Ліс ПЗФ",null,"Вода","Атмосфера","Земля","Відходи","Надра","Біоресурси   Ліс ПЗФ","Лабораторія"]
["Кількість перевірених об’єктів,  державного нагляду (контролю)**",null,1.0,{"$f":"SUM(E5:K5)+SUM(M5:S5)","v":0},{"$nulls":7},{"$f":"SUM(E5:K5)","v":0},{"$nulls":7},{"$f":"SUM(M5:S5)","v":0}]
["Кількість проведених ресурсних перевірок*",null,2.0,2,{"$nulls":7},0,{"$nulls":5},2.0,null,2]
["Кількість складених протоколів","всього",3.0,5,{"$nulls":7},0,1.0,null,1.0,1.0,null,2.0,null,5]
[null,"у т. ч. передано для розгляду до судових органів",4.0,1,{"$nulls":7},0,{"$nulls":5},1.0,null,1]
["Притягнуто до адмінвідповідальності осіб, громадян, чол.",null,5.0,4,{"$nulls":7},0,1.0,null,1.0,1.0,null,1.0,null,4]
["Сума штрафів тис. грн","накладено",6.0,0.493,{"$nulls":7},0,0.136,null,0.136,0.136,null,0.085,null,0.493]
[null,"стягнуто",7.0,0.493,{"$nulls":7},0,0.136,null,0.136,0.136,null,0.085,null,0.493]
["Передано матеріалів до правоохоронних органів","Всього",8.0,0,{"$nulls":7},0,{"$nulls":7},0]
[null,"До органів Нацполіції,  всього",9.0,0,{"$nulls":7},0,{"$nulls":7},0]
[null,"в т.ч. з ознаками кримінального правопорушення, в прорядку ст. 214 КПКУ",10.0,0,{"$nulls":7},0,{"$nulls":7},0]
[null,"До органів Прокуратури, всього",11.0,0,{"$nulls":7},0,{"$nulls":7},0]
[null,"в.ч.т. з ознаками правопорушення , в порядку ст. 214 КПКУ",12.0,0,{"$nulls":7},0,{"$nulls":7},0]
[null,"До органів СБУ, інших",13.0,0,{"$nulls":7},0,{"$nulls":7},0]
[null,"в.ч.т. з ознаками правопорушення  в порядку ст. 214 КПКУ",14.0,0,{"$nulls":7},0,{"$nulls":7},0]
["Порушено кримінальних               справ, од",null,15.0,0,{"$nulls":7},0,{"$nulls":7},0]
["Загальна сума збитків, тис. грн.",null,16.0,76.058,{"$nulls":7},0,7.203,7.248,2.255,0.078,null,null,59.274,76.058]
["Пред'явлено","кількість",17.0,7,{"$nulls":7},0,1.0,1.0,3.0,1.0,null,null,1.0,7]
[null,"сума, тис грн",18.0,76.058,{"$nulls":7},0,7.203,7.248,2.255,0.078,null,null,59.274,76.058]
["Стягнуто","кількість",19.0,4,{"$nulls":7},0,null,1.0,2.0,1.0,null,null,null,4]
[null,"сума, тис грн",20.0,92.124,{"$nulls":7},0,null,7.248,0.197,0.078,null,null,84.601,92.124]
[null,"в т.ч. стягнуто в добровільному порядку, тис. грн",21.0,92.124,{"$nulls":7},0,null,7.248,0.197,0.078,null,null,84.601,92.124]
[null,"в т.ч.  стягнуто в примусовому порядку, за рішенням судів, тис. грн",22.0,0,{"$nulls":7},0,{"$nulls":7},0]
[null,"Кількість випадків призупинення діяльності",23.0,0,{"$nulls":7},0,{"$nulls":7},0]